{"text_format":"3","workbook":"xlsx","n_sheets":8,"sheets":["Cover Page","HRSA 100-1-A CHILDREN'S HOSP ID","HRSA 100-1-B CH GME PROG STATUS","HRSA 100-1-C NO. OF TRAINEES SI","HRSA 100-1-D NO OF TRAINEES ROT","HRSA 100-1-E LIST OF PROGRAMS",".",".."],"not_rendered":{"macros":1,"defined_names":12},"read":"whole","date_system":"1900"}

{"sheet":"Cover Page","index":0,"n_rows":23,"n_cols":7,"rows_kept":23,"merged":[[0,6,0,8],[1,6,1,8],[3,1,13,8],[19,1,21,8],[22,1,35,8]]}
["Department of Health and Human Services",{"$nulls":5},"OMB No. 0915-0313"]
["Health Resources and Services Administration",{"$nulls":5},"Expiration Date:  11/30/2013"]
[]
[null,"\n\n\nCHILDREN’S HOSPITALS GRADUATE MEDICAL EDUCATION PAYMENT PROGRAM\n\nANNUAL REPORT FORM HRSA 100-1\n"]
{"$rows_empty":15}
[null,"Public Burden Statement"]
[]
[]
[null,"An agency may not conduct or sponsor, and a person is not required to respond to, a collection of information unless it displays a currently valid OMB control number.  The OMB control number for this project is 0915-0313.  Public reporting burden for the applicant for this collection of information is estimated to average 9.2 hours per response, including the time for reviewing instructions, searching existing data sources, gathering and maintaining the data needed, and completing and reviewing the collection of information.  Send comments regarding this burden estimate or any other aspect of this collection of information, including suggestions for reducing this burden, to HRSA Reports Clearance Officer, 5600 Fishers Lane, Room 14 33, Rockville, Maryland, 20857."]

{"sheet":"HRSA 100-1-A CHILDREN'S HOSP ID","index":1,"n_rows":31,"n_cols":3,"rows_kept":31,"merged":[[3,0,3,1],[4,0,4,1],[15,0,15,1],[30,0,30,1]]}
["Department of Health and Human Services","OMB No.  0915-0313"]
["Health Resources and Services Administration","Expiration Date:  11/30/2013"]
["See detailed guidance for complete instructions."]
["Children's Hospitals Graduate Medical Education Payment Program"]
["HRSA 100-1-A:  Children's Hospital Identification Information"]
["Name of Children's Hospital"]
["Address"]
["City"]
["State"]
["Zip Code"]
["Medicare Provider Number",null," "]
["Relevant fiscal year for application","FY2013"]
["Relevant academic year for application ","July 1, 2011 - June 30, 2012"]
["Year your hospital first received CHGME funding"]
["Submission Date of Annual Report"]
["Indicate years in which hospital received any CHGME funding :"]
[null,false]
[null,false]
[null,false]
[null,false]
[null,false]
[null,false]
[null,false]
[null,false]
[null,false]
[null,false]
[null,false]
[null,false]
[null,false]
["Type of Application",1]
[false]

{"sheet":"HRSA 100-1-B CH GME PROG STATUS","index":2,"n_rows":119,"n_cols":8,"rows_kept":119,"merged":[[0,0,0,1],[1,0,1,1],[3,0,3,7],[4,1,4,7],[5,1,5,7],[6,1,6,7],[7,0,7,3],[7,5,7,7],[8,0,14,7],[15,0,16,0],[15,1,15,3],[15,5,15,7],[17,0,17,7],[20,0,20,7],[27,0,27,7],[47,0,47,7],[55,0,55,7],[64,0,64,7],[118,0,118,7]]}
["Department of Health and Human Services",{"$nulls":6},"OMB No. 0915-0313"]
["Health Resources and Services Administration",{"$nulls":6},"Expiration Date:  11/30/2013"]
["Children's Hospitals Graduate Medical Education Payment Program"]
["HRSA 100-1-B:  Children’s Hospital GME Training Program Status and Change"]
["Hospital Name:",{"$f":"'HRSA 100-1-A CHILDREN''S HOSP ID'!B6","v":0}]
["Medicare Provider Number:",{"$f":"+'HRSA 100-1-A CHILDREN''S HOSP ID'!B11","v":{"v":0,"d":"00-0000"}}]
["Date of Report:",{"$f":"+'HRSA 100-1-A CHILDREN''S HOSP ID'!B15","v":"00:00:00"}]
["How many outside institutions send residents to your hospital?"]
["The table below asks about the accreditation status of your GME programs and whether a  program has been added or dropped since the previous academic year.  There must be at least two check marks in each row that lists the name of a program. \n\nProgram Status: For each of the programs listed (and for any additional program in which training is offered), check the box indicating whether the program is sponsored by the hospital and/or whether the hospital serves as a major participating institution/rotation site for the program, including programs without residents actively rotating during the relevant academic year.  (Check all that apply.)  If your children’s hospital is not involved in a given program, check “not offered.”\n\nProgram Change: Also indicate whether each program was added or dropped since the previous academic year by checking the appropriate box.   Only indicate a program has been added if it has been newly accredited since the previous academic year.  Only indicate a program has been dropped if it has voluntarily or involuntarily lost accreditation since the previous academic year.  If a program was neither added nor dropped, check “no change.” \n\nIf you need to add additional programs, please use the “Other: Specify” option at the end of the table and follow the same directions as above.\n\nEach row of this table should have at least one check mark in the Program Status section and one check mark in the Program Change section. See detailed guidance for complete instructions and examples.\n"]
[]
[]
[]
[]
[]
[]
[null,"PROGRAM STATUS 2011-2012",{"$nulls":3},"PROGRAM CHANGE SINCE 2010-2011"]
[null,"Sponsoring Program","Major Participating Institution or Rotation Site/Other Participating Institution","Not Offered",null,"Program Added Since 2010-2011","Program Dropped Since 2010-2011","No Change"]
["Primary Care Programs"]
["Family Medicine"]
["Pediatrics"]
["Combined Programs"]
["Internal Medicine /Pediatrics"]
["Pediatrics/Dermatology"]
["Pediatrics/Emergency Medicine"]
["Pediatrics/Medical Genetics"]
["Pediatrics/Physical Medicine and Rehab"]
["Pediatrics/Psychiatry/Child & Adolescent Psych"]
["Pediatric Medical Subspecialties"]
["Adolescent Medicine Pediatrics"]
["Child Abuse Pediatrics"]
["Developmental Behavioral Pediatrics"]
["Hospice and Palliative Medicine"]
["Medical Toxicology"]
["Neonatal-Perinatal Medicine"]
["Neurodevelopmental Disabilities"]
["Pediatric Cardiology"]
["Pediatric Critical Care Medicine"]
["Pediatric Emergency Medicine"]
["Pediatric Endocrinology"]
["Pediatric Gastroenterology"]
["Pediatric Hematology/Oncology"]
["Pediatric Infectious Disease"]
["Pediatric Nephrology"]
["Pediatric Pulmonology"]
["Pediatric Rheumatology"]
["Pediatric Transplant Hepatology"]
["Pediatric Sports Medicine"]
["Pediatric Surgical Subspecialties"]
["Pediatric Cardiothoracic Surgery"]
["Pediatric Neurosurgery"]
["Pediatric Ophthalmology"]
["Pediatric Orthopedics"]
["Pediatric Otolaryngology"]
["Pediatric Surgery"]
["Pediatric Urology"]
["Other Specialties"]
["Child and Adolescent Psychiatry"]
["Child Neurology"]
["Emergency Medicine (Pediatric)a "]
["Pediatric Anesthesiology"]
["Pediatric Dermatology"]
["Pediatric Pathology"]
["Pediatric Radiology"]
["Pediatric Rehabilitation Medicine"]
["General (Non-pediatric) Specialties"]
["Anesthesiology"]
["Colon & Rectal Surgery"]
["Dermatology"]
["Emergency Medicine"]
["Medical Genetics"]
["Neurological Surgery"]
["Neurology"]
["Nuclear Medicine"]
["Obstetrics and Gynecology"]
["Ophthalmology"]
["Orthopedic Surgery"]
["Otolaryngology"]
["Pathology"]
["Physical Medicine & Rehabilitation"]
["Plastic Surgery"]
["Preventive Medicine"]
["Psychiatry "]
["Radiology"]
["Surgery"]
["Thoracic Surgery"]
["Urology"]
["Allergy Immunology"]
["Pediatric Sleep Medicine"]
[1]
[1]
[1]
[1]
[1]
[1]
[1]
[1]
[1]
[1]
[1]
[1]
[1]
[1]
[1]
[1]
[1]
[1]
[1]
[1]
[1]
[1]
[1]
[1]
[1]
[1]
[1]
[1]
[1]
[1]
[" a. Refers to program in which residents first completed an emergency medicine residency followed by a pediatric emergency medicine fellowship versus initially completing a pediatric residency followed by a pediatric emergency medicine fellowship."]

{"sheet":"HRSA 100-1-C NO. OF TRAINEES SI","index":3,"n_rows":112,"n_cols":5,"rows_kept":112,"merged":[[0,0,0,1],[1,0,1,1],[2,0,2,4],[3,0,3,4],[4,1,4,4],[5,1,5,4],[6,1,6,4],[7,0,7,4],[8,0,8,4],[10,0,10,4],[13,0,13,4],[20,0,20,4],[40,0,40,4],[48,0,48,4],[57,0,57,4],[111,0,111,4],[112,0,112,4],[115,0,115,3]]}
["Department of Health and Human Services",{"$nulls":3},"OMB No.  0915-0313"]
["Health Resources and Services Administration",{"$nulls":3},"Expiration Date:  11/30/2013"]
["Children's Hospitals Graduate Medical Education Payment Program"]
["HRSA 100-1-C:  Number of FTE Trainees - Sponsoring Institution"]
["Hospital Name:",{"$f":"+'HRSA 100-1-A CHILDREN''S HOSP ID'!B6","v":0}]
[{"$f":"+'HRSA 100-1-B CH GME PROG STATUS'!A6","v":"Medicare Provider Number:"},{"$f":"+'HRSA 100-1-A CHILDREN''S HOSP ID'!B11","v":{"v":0,"d":"00-0000"}}]
[{"$f":"+'HRSA 100-1-B CH GME PROG STATUS'!A7","v":"Date of Report:"},{"$f":"+'HRSA 100-1-A CHILDREN''S HOSP ID'!B15","v":"00:00:00"}]
["For each accredited GME program for which your children’s hospital is a  sponsoring institution, please indicate the number of approved FTE resident positions, the number of FTE resident positions recruited to fill, number of FTE resident positions filled, and number of residents in FTE training positions in your hospital. Only the programs that are checked on \"HRSA 100-1-B Children's Hospital Program Status\" appear and should be completed. Please report the total number across all PGY years. "]
["The number of approved (accredited) positions assigned to sponsoring institutions only should be entered in the first column.  The number of positions the program actively recruited to fill in the most recent academic year should be entered in the second column.  The third column is the total number of positions filled for all PGY years.  The fourth column is the number of residents (people) in FTE positions in the most recent academic year.  Please see guidance for detailed instructions and examples."]
[null,"Number of Approved  Positions                  (2011-2012)","Number of Recruited Positions    (2011-2012)","Number of  Positions Filled for the Total Program (2011-2012)","Number of Residents in FTE Training Positions (2011-2012)"]
["Primary Care Programs"]
[{"$f":"IF('HRSA 100-1-B CH GME PROG STATUS'!B19=\"a\",'HRSA 100-1-B CH GME PROG STATUS'!A19,\"N/A\")","v":"N/A"}]
[{"$f":"IF('HRSA 100-1-B CH GME PROG STATUS'!B20=\"a\",'HRSA 100-1-B CH GME PROG STATUS'!A20,\"N/A\")","v":"N/A"}]
["Combined Programs"]
[{"$f":"IF('HRSA 100-1-B CH GME PROG STATUS'!B22=\"a\",'HRSA 100-1-B CH GME PROG STATUS'!A22,\"N/A\")","v":"N/A"}]
[{"$f":"IF('HRSA 100-1-B CH GME PROG STATUS'!B23=\"a\",'HRSA 100-1-B CH GME PROG STATUS'!A23,\"N/A\")","v":"N/A"}]
[{"$f":"IF('HRSA 100-1-B CH GME PROG STATUS'!B24=\"a\",'HRSA 100-1-B CH GME PROG STATUS'!A24,\"N/A\")","v":"N/A"}]
[{"$f":"IF('HRSA 100-1-B CH GME PROG STATUS'!B25=\"a\",'HRSA 100-1-B CH GME PROG STATUS'!A25,\"N/A\")","v":"N/A"}]
[{"$f":"IF('HRSA 100-1-B CH GME PROG STATUS'!B26=\"a\",'HRSA 100-1-B CH GME PROG STATUS'!A26,\"N/A\")","v":"N/A"}]
[{"$f":"IF('HRSA 100-1-B CH GME PROG STATUS'!B27=\"a\",'HRSA 100-1-B CH GME PROG STATUS'!A27,\"N/A\")","v":"N/A"}]
["Pediatric Medical Subspecialties"]
[{"$f":"IF('HRSA 100-1-B CH GME PROG STATUS'!B29=\"a\",'HRSA 100-1-B CH GME PROG STATUS'!A29,\"N/A\")","v":"N/A"}]
[{"$f":"IF('HRSA 100-1-B CH GME PROG STATUS'!B30=\"a\",'HRSA 100-1-B CH GME PROG STATUS'!A30,\"N/A\")","v":"N/A"}]
[{"$f":"IF('HRSA 100-1-B CH GME PROG STATUS'!B31=\"a\",'HRSA 100-1-B CH GME PROG STATUS'!A31,\"N/A\")","v":"N/A"}]
[{"$f":"IF('HRSA 100-1-B CH GME PROG STATUS'!B32=\"a\",'HRSA 100-1-B CH GME PROG STATUS'!A32,\"N/A\")","v":"N/A"}]
[{"$f":"IF('HRSA 100-1-B CH GME PROG STATUS'!B33=\"a\",'HRSA 100-1-B CH GME PROG STATUS'!A33,\"N/A\")","v":"N/A"}]
[{"$f":"IF('HRSA 100-1-B CH GME PROG STATUS'!B34=\"a\",'HRSA 100-1-B CH GME PROG STATUS'!A34,\"N/A\")","v":"N/A"}]
[{"$f":"IF('HRSA 100-1-B CH GME PROG STATUS'!B35=\"a\",'HRSA 100-1-B CH GME PROG STATUS'!A35,\"N/A\")","v":"N/A"}]
[{"$f":"IF('HRSA 100-1-B CH GME PROG STATUS'!B36=\"a\",'HRSA 100-1-B CH GME PROG STATUS'!A36,\"N/A\")","v":"N/A"}]
[{"$f":"IF('HRSA 100-1-B CH GME PROG STATUS'!B37=\"a\",'HRSA 100-1-B CH GME PROG STATUS'!A37,\"N/A\")","v":"N/A"}]
[{"$f":"IF('HRSA 100-1-B CH GME PROG STATUS'!B38=\"a\",'HRSA 100-1-B CH GME PROG STATUS'!A38,\"N/A\")","v":"N/A"}]
[{"$f":"IF('HRSA 100-1-B CH GME PROG STATUS'!B39=\"a\",'HRSA 100-1-B CH GME PROG STATUS'!A39,\"N/A\")","v":"N/A"}]
[{"$f":"IF('HRSA 100-1-B CH GME PROG STATUS'!B40=\"a\",'HRSA 100-1-B CH GME PROG STATUS'!A40,\"N/A\")","v":"N/A"}]
[{"$f":"IF('HRSA 100-1-B CH GME PROG STATUS'!B41=\"a\",'HRSA 100-1-B CH GME PROG STATUS'!A41,\"N/A\")","v":"N/A"}]
[{"$f":"IF('HRSA 100-1-B CH GME PROG STATUS'!B42=\"a\",'HRSA 100-1-B CH GME PROG STATUS'!A42,\"N/A\")","v":"N/A"}]
[{"$f":"IF('HRSA 100-1-B CH GME PROG STATUS'!B43=\"a\",'HRSA 100-1-B CH GME PROG STATUS'!A43,\"N/A\")","v":"N/A"}]
[{"$f":"IF('HRSA 100-1-B CH GME PROG STATUS'!B44=\"a\",'HRSA 100-1-B CH GME PROG STATUS'!A44,\"N/A\")","v":"N/A"}]
[{"$f":"IF('HRSA 100-1-B CH GME PROG STATUS'!B45=\"a\",'HRSA 100-1-B CH GME PROG STATUS'!A45,\"N/A\")","v":"N/A"}]
[{"$f":"IF('HRSA 100-1-B CH GME PROG STATUS'!B46=\"a\",'HRSA 100-1-B CH GME PROG STATUS'!A46,\"N/A\")","v":"N/A"}]
[{"$f":"IF('HRSA 100-1-B CH GME PROG STATUS'!B47=\"a\",'HRSA 100-1-B CH GME PROG STATUS'!A47,\"N/A\")","v":"N/A"}]
["Pediatric Surgical Subspecialties"]
[{"$f":"IF('HRSA 100-1-B CH GME PROG STATUS'!B49=\"a\",'HRSA 100-1-B CH GME PROG STATUS'!A49,\"N/A\")","v":"N/A"}]
[{"$f":"IF('HRSA 100-1-B CH GME PROG STATUS'!B50=\"a\",'HRSA 100-1-B CH GME PROG STATUS'!A50,\"N/A\")","v":"N/A"}]
[{"$f":"IF('HRSA 100-1-B CH GME PROG STATUS'!B51=\"a\",'HRSA 100-1-B CH GME PROG STATUS'!A51,\"N/A\")","v":"N/A"}]
[{"$f":"IF('HRSA 100-1-B CH GME PROG STATUS'!B52=\"a\",'HRSA 100-1-B CH GME PROG STATUS'!A52,\"N/A\")","v":"N/A"}]
[{"$f":"IF('HRSA 100-1-B CH GME PROG STATUS'!B53=\"a\",'HRSA 100-1-B CH GME PROG STATUS'!A53,\"N/A\")","v":"N/A"}]
[{"$f":"IF('HRSA 100-1-B CH GME PROG STATUS'!B54=\"a\",'HRSA 100-1-B CH GME PROG STATUS'!A54,\"N/A\")","v":"N/A"}]
[{"$f":"IF('HRSA 100-1-B CH GME PROG STATUS'!B55=\"a\",'HRSA 100-1-B CH GME PROG STATUS'!A55,\"N/A\")","v":"N/A"}]
["Other Specialties"]
[{"$f":"IF('HRSA 100-1-B CH GME PROG STATUS'!B57=\"a\",'HRSA 100-1-B CH GME PROG STATUS'!A57,\"N/A\")","v":"N/A"}]
[{"$f":"IF('HRSA 100-1-B CH GME PROG STATUS'!B58=\"a\",'HRSA 100-1-B CH GME PROG STATUS'!A58,\"N/A\")","v":"N/A"}]
[{"$f":"IF('HRSA 100-1-B CH GME PROG STATUS'!B59=\"a\",'HRSA 100-1-B CH GME PROG STATUS'!A59,\"N/A\")","v":"N/A"}]
[{"$f":"IF('HRSA 100-1-B CH GME PROG STATUS'!B60=\"a\",'HRSA 100-1-B CH GME PROG STATUS'!A60,\"N/A\")","v":"N/A"}]
[{"$f":"IF('HRSA 100-1-B CH GME PROG STATUS'!B61=\"a\",'HRSA 100-1-B CH GME PROG STATUS'!A61,\"N/A\")","v":"N/A"}]
[{"$f":"IF('HRSA 100-1-B CH GME PROG STATUS'!B62=\"a\",'HRSA 100-1-B CH GME PROG STATUS'!A62,\"N/A\")","v":"N/A"}]
[{"$f":"IF('HRSA 100-1-B CH GME PROG STATUS'!B63=\"a\",'HRSA 100-1-B CH GME PROG STATUS'!A63,\"N/A\")","v":"N/A"}]
[{"$f":"IF('HRSA 100-1-B CH GME PROG STATUS'!B64=\"a\",'HRSA 100-1-B CH GME PROG STATUS'!A64,\"N/A\")","v":"N/A"}]
["General (Non-pediatric) Specialties"]
[{"$f":"IF('HRSA 100-1-B CH GME PROG STATUS'!B66=\"a\",'HRSA 100-1-B CH GME PROG STATUS'!A66,\"N/A\")","v":"N/A"}]
[{"$f":"IF('HRSA 100-1-B CH GME PROG STATUS'!B67=\"a\",'HRSA 100-1-B CH GME PROG STATUS'!A67,\"N/A\")","v":"N/A"}]
[{"$f":"IF('HRSA 100-1-B CH GME PROG STATUS'!B68=\"a\",'HRSA 100-1-B CH GME PROG STATUS'!A68,\"N/A\")","v":"N/A"}]
[{"$f":"IF('HRSA 100-1-B CH GME PROG STATUS'!B69=\"a\",'HRSA 100-1-B CH GME PROG STATUS'!A69,\"N/A\")","v":"N/A"}]
[{"$f":"IF('HRSA 100-1-B CH GME PROG STATUS'!B70=\"a\",'HRSA 100-1-B CH GME PROG STATUS'!A70,\"N/A\")","v":"N/A"}]
[{"$f":"IF('HRSA 100-1-B CH GME PROG STATUS'!B71=\"a\",'HRSA 100-1-B CH GME PROG STATUS'!A71,\"N/A\")","v":"N/A"}]
[{"$f":"IF('HRSA 100-1-B CH GME PROG STATUS'!B72=\"a\",'HRSA 100-1-B CH GME PROG STATUS'!A72,\"N/A\")","v":"N/A"}]
[{"$f":"IF('HRSA 100-1-B CH GME PROG STATUS'!B73=\"a\",'HRSA 100-1-B CH GME PROG STATUS'!A73,\"N/A\")","v":"N/A"}]
[{"$f":"IF('HRSA 100-1-B CH GME PROG STATUS'!B74=\"a\",'HRSA 100-1-B CH GME PROG STATUS'!A74,\"N/A\")","v":"N/A"}]
[{"$f":"IF('HRSA 100-1-B CH GME PROG STATUS'!B75=\"a\",'HRSA 100-1-B CH GME PROG STATUS'!A75,\"N/A\")","v":"N/A"}]
[{"$f":"IF('HRSA 100-1-B CH GME PROG STATUS'!B76=\"a\",'HRSA 100-1-B CH GME PROG STATUS'!A76,\"N/A\")","v":"N/A"}]
[{"$f":"IF('HRSA 100-1-B CH GME PROG STATUS'!B77=\"a\",'HRSA 100-1-B CH GME PROG STATUS'!A77,\"N/A\")","v":"N/A"}]
[{"$f":"IF('HRSA 100-1-B CH GME PROG STATUS'!B78=\"a\",'HRSA 100-1-B CH GME PROG STATUS'!A78,\"N/A\")","v":"N/A"}]
[{"$f":"IF('HRSA 100-1-B CH GME PROG STATUS'!B79=\"a\",'HRSA 100-1-B CH GME PROG STATUS'!A79,\"N/A\")","v":"N/A"}]
[{"$f":"IF('HRSA 100-1-B CH GME PROG STATUS'!B80=\"a\",'HRSA 100-1-B CH GME PROG STATUS'!A80,\"N/A\")","v":"N/A"}]
[{"$f":"IF('HRSA 100-1-B CH GME PROG STATUS'!B81=\"a\",'HRSA 100-1-B CH GME PROG STATUS'!A81,\"N/A\")","v":"N/A"}]
[{"$f":"IF('HRSA 100-1-B CH GME PROG STATUS'!B82=\"a\",'HRSA 100-1-B CH GME PROG STATUS'!A82,\"N/A\")","v":"N/A"}]
[{"$f":"IF('HRSA 100-1-B CH GME PROG STATUS'!B83=\"a\",'HRSA 100-1-B CH GME PROG STATUS'!A83,\"N/A\")","v":"N/A"}]
[{"$f":"IF('HRSA 100-1-B CH GME PROG STATUS'!B84=\"a\",'HRSA 100-1-B CH GME PROG STATUS'!A84,\"N/A\")","v":"N/A"}]
[{"$f":"IF('HRSA 100-1-B CH GME PROG STATUS'!B85=\"a\",'HRSA 100-1-B CH GME PROG STATUS'!A85,\"N/A\")","v":"N/A"}]
[{"$f":"IF('HRSA 100-1-B CH GME PROG STATUS'!B86=\"a\",'HRSA 100-1-B CH GME PROG STATUS'!A86,\"N/A\")","v":"N/A"}]
[{"$f":"IF('HRSA 100-1-B CH GME PROG STATUS'!B87=\"a\",'HRSA 100-1-B CH GME PROG STATUS'!A87,\"N/A\")","v":"N/A"}]
[{"$f":"IF('HRSA 100-1-B CH GME PROG STATUS'!B88=\"a\",'HRSA 100-1-B CH GME PROG STATUS'!A88,\"N/A\")","v":"N/A"}]
[{"$f":"IF('HRSA 100-1-B CH GME PROG STATUS'!B89=\"a\",VLOOKUP('HRSA 100-1-B CH GME PROG STATUS'!A89,Program_Name,2,FALSE),\"N/A\")","v":"N/A"}]
[{"$f":"IF('HRSA 100-1-B CH GME PROG STATUS'!B90=\"a\",VLOOKUP('HRSA 100-1-B CH GME PROG STATUS'!A90,Program_Name,2,FALSE),\"N/A\")","v":"N/A"}]
[{"$f":"IF('HRSA 100-1-B CH GME PROG STATUS'!B91=\"a\",VLOOKUP('HRSA 100-1-B CH GME PROG STATUS'!A91,Program_Name,2,FALSE),\"N/A\")","v":"N/A"}]
[{"$f":"IF('HRSA 100-1-B CH GME PROG STATUS'!B92=\"a\",VLOOKUP('HRSA 100-1-B CH GME PROG STATUS'!A92,Program_Name,2,FALSE),\"N/A\")","v":"N/A"}]
[{"$f":"IF('HRSA 100-1-B CH GME PROG STATUS'!B93=\"a\",VLOOKUP('HRSA 100-1-B CH GME PROG STATUS'!A93,Program_Name,2,FALSE),\"N/A\")","v":"N/A"}]
[{"$f":"IF('HRSA 100-1-B CH GME PROG STATUS'!B94=\"a\",VLOOKUP('HRSA 100-1-B CH GME PROG STATUS'!A94,Program_Name,2,FALSE),\"N/A\")","v":"N/A"}]
[{"$f":"IF('HRSA 100-1-B CH GME PROG STATUS'!B95=\"a\",VLOOKUP('HRSA 100-1-B CH GME PROG STATUS'!A95,Program_Name,2,FALSE),\"N/A\")","v":"N/A"}]
[{"$f":"IF('HRSA 100-1-B CH GME PROG STATUS'!B96=\"a\",VLOOKUP('HRSA 100-1-B CH GME PROG STATUS'!A96,Program_Name,2,FALSE),\"N/A\")","v":"N/A"}]
[{"$f":"IF('HRSA 100-1-B CH GME PROG STATUS'!B97=\"a\",VLOOKUP('HRSA 100-1-B CH GME PROG STATUS'!A97,Program_Name,2,FALSE),\"N/A\")","v":"N/A"}]
[{"$f":"IF('HRSA 100-1-B CH GME PROG STATUS'!B98=\"a\",VLOOKUP('HRSA 100-1-B CH GME PROG STATUS'!A98,Program_Name,2,FALSE),\"N/A\")","v":"N/A"}]
[{"$f":"IF('HRSA 100-1-B CH GME PROG STATUS'!B99=\"a\",VLOOKUP('HRSA 100-1-B CH GME PROG STATUS'!A99,Program_Name,2,FALSE),\"N/A\")","v":"N/A"}]
[{"$f":"IF('HRSA 100-1-B CH GME PROG STATUS'!B100=\"a\",VLOOKUP('HRSA 100-1-B CH GME PROG STATUS'!A100,Program_Name,2,FALSE),\"N/A\")","v":"N/A"}]
[{"$f":"IF('HRSA 100-1-B CH GME PROG STATUS'!B101=\"a\",VLOOKUP('HRSA 100-1-B CH GME PROG STATUS'!A101,Program_Name,2,FALSE),\"N/A\")","v":"N/A"}]
[{"$f":"IF('HRSA 100-1-B CH GME PROG STATUS'!B102=\"a\",VLOOKUP('HRSA 100-1-B CH GME PROG STATUS'!A102,Program_Name,2,FALSE),\"N/A\")","v":"N/A"}]
[{"$f":"IF('HRSA 100-1-B CH GME PROG STATUS'!B103=\"a\",VLOOKUP('HRSA 100-1-B CH GME PROG STATUS'!A103,Program_Name,2,FALSE),\"N/A\")","v":"N/A"}]
[{"$f":"IF('HRSA 100-1-B CH GME PROG STATUS'!B104=\"a\",VLOOKUP('HRSA 100-1-B CH GME PROG STATUS'!A104,Program_Name,2,FALSE),\"N/A\")","v":"N/A"}]
[{"$f":"IF('HRSA 100-1-B CH GME PROG STATUS'!B105=\"a\",VLOOKUP('HRSA 100-1-B CH GME PROG STATUS'!A105,Program_Name,2,FALSE),\"N/A\")","v":"N/A"}]
[{"$f":"IF('HRSA 100-1-B CH GME PROG STATUS'!B106=\"a\",VLOOKUP('HRSA 100-1-B CH GME PROG STATUS'!A106,Program_Name,2,FALSE),\"N/A\")","v":"N/A"}]
[{"$f":"IF('HRSA 100-1-B CH GME PROG STATUS'!B107=\"a\",VLOOKUP('HRSA 100-1-B CH GME PROG STATUS'!A107,Program_Name,2,FALSE),\"N/A\")","v":"N/A"}]
[{"$f":"IF('HRSA 100-1-B CH GME PROG STATUS'!B108=\"a\",VLOOKUP('HRSA 100-1-B CH GME PROG STATUS'!A108,Program_Name,2,FALSE),\"N/A\")","v":"N/A"}]
[{"$f":"IF('HRSA 100-1-B CH GME PROG STATUS'!B109=\"a\",VLOOKUP('HRSA 100-1-B CH GME PROG STATUS'!A109,Program_Name,2,FALSE),\"N/A\")","v":"N/A"}]
[{"$f":"IF('HRSA 100-1-B CH GME PROG STATUS'!B110=\"a\",VLOOKUP('HRSA 100-1-B CH GME PROG STATUS'!A110,Program_Name,2,FALSE),\"N/A\")","v":"N/A"}]
[{"$f":"IF('HRSA 100-1-B CH GME PROG STATUS'!B111=\"a\",VLOOKUP('HRSA 100-1-B CH GME PROG STATUS'!A111,Program_Name,2,FALSE),\"N/A\")","v":"N/A"}]
[{"$f":"IF('HRSA 100-1-B CH GME PROG STATUS'!B112=\"a\",VLOOKUP('HRSA 100-1-B CH GME PROG STATUS'!A112,Program_Name,2,FALSE),\"N/A\")","v":"N/A"}]
[{"$f":"IF('HRSA 100-1-B CH GME PROG STATUS'!B113=\"a\",VLOOKUP('HRSA 100-1-B CH GME PROG STATUS'!A113,Program_Name,2,FALSE),\"N/A\")","v":"N/A"}]
[{"$f":"IF('HRSA 100-1-B CH GME PROG STATUS'!B114=\"a\",VLOOKUP('HRSA 100-1-B CH GME PROG STATUS'!A114,Program_Name,2,FALSE),\"N/A\")","v":"N/A"}]
[{"$f":"IF('HRSA 100-1-B CH GME PROG STATUS'!B115=\"a\",VLOOKUP('HRSA 100-1-B CH GME PROG STATUS'!A115,Program_Name,2,FALSE),\"N/A\")","v":"N/A"}]
[{"$f":"IF('HRSA 100-1-B CH GME PROG STATUS'!B116=\"a\",VLOOKUP('HRSA 100-1-B CH GME PROG STATUS'!A116,Program_Name,2,FALSE),\"N/A\")","v":"N/A"}]
[{"$f":"IF('HRSA 100-1-B CH GME PROG STATUS'!B117=\"a\",VLOOKUP('HRSA 100-1-B CH GME PROG STATUS'!A117,Program_Name,2,FALSE),\"N/A\")","v":"N/A"}]
[{"$f":"IF('HRSA 100-1-B CH GME PROG STATUS'!B118=\"a\",VLOOKUP('HRSA 100-1-B CH GME PROG STATUS'!A118,Program_Name,2,FALSE),\"N/A\")","v":"N/A"}]
[" a. Refers to program in which residents first completed an emergency medicine residency followed by a pediatric emergency medicine fellowship versus initially completing a pediatric residency followed by a pediatric emergency medicine fellowship."]

{"sheet":"HRSA 100-1-D NO OF TRAINEES ROT","index":4,"n_rows":117,"n_cols":6,"rows_kept":117,"merged":[[0,0,0,1],[1,0,1,1],[2,0,2,5],[3,0,3,5],[4,1,4,5],[5,1,5,5],[6,1,6,5],[8,0,8,5],[9,0,10,5],[12,0,12,5],[13,0,13,5],[15,0,15,5],[18,0,18,5],[25,0,25,5],[45,0,45,5],[53,0,53,5],[62,0,62,5],[116,0,116,5]]}
["Department of Health and Human Services",{"$nulls":4},"OMB No.  0915-0313"]
["Health Resources and Services Administration",{"$nulls":4},"Expiration Date:  11/30/2013"]
["Children's Hospitals Graduate Medical Education Payment Program"]
["HRSA 100-1-D  Major Participating Institutions and Rotation Sites - Number of FTE Trainees Meeting 75% Standard"]
["Hospital Name:",{"$f":"+'HRSA 100-1-A CHILDREN''S HOSP ID'!B6","v":0}]
[{"$f":"+'HRSA 100-1-C NO. OF TRAINEES SI'!A6","v":"Medicare Provider Number:"},{"$f":"+'HRSA 100-1-A CHILDREN''S HOSP ID'!B11","v":{"v":0,"d":"00-0000"}}]
[{"$f":"+'HRSA 100-1-C NO. OF TRAINEES SI'!A7","v":"Date of Report:"},{"$f":"+'HRSA 100-1-A CHILDREN''S HOSP ID'!B15","v":"00:00:00"}]
[]
["Complete the required row information for the highlighted GME program(s). If your hospital is  not a major participating institution or rotation site for any GME training programs, no GME training program(s) will be identified or highlighted and you should proceed to the next worksheet (HRSA 100-1-E).  For each GME program for which your children’s hospital is a major participating institution or a rotation site, please indicate the number of approved positions assigned to major participating institutions only, the number of  positions recruited to fill in the most recent academic year (2011-2012), the number of approved positions filled in the most recent academic year, the total number of residents rotating in the program for any length of time, and the number of FTEs for which the trainee spends more than 75 percent of their training time training under your hospital's supervision.  Do not submit the number of approved positions assigned to the resident's sponsoring institution. The first three column headings refer to approved, recruited, and filled positions only.  The last two (fourth and fifth) column headings refer to residents (people).  If you do not have any approved positions or you have not recruited for any positions, place a \"0\" in the first three columns.  Report on number of residents (people, not positions) in the last two columns.  See detailed guidance for complete instructions."]
[]
[]
[]
[]
[]
[null,"Number of Approved Positions   (2011-2012)","Number of Recruited Positions  (2011-2012)","Number of Approved Positions Filled         (2011-2012)","Number of Residents Rotating through Programs        (2011-2012)","Number of Trainees Spending ³ 75% under Children’s Hospital Supervision              (2011-2012)"]
["Primary Care Programs"]
[{"$f":"IF('HRSA 100-1-B CH GME PROG STATUS'!C19=\"a\",'HRSA 100-1-B CH GME PROG STATUS'!A19,\"N/A\")","v":"N/A"}]
[{"$f":"IF('HRSA 100-1-B CH GME PROG STATUS'!C20=\"a\",'HRSA 100-1-B CH GME PROG STATUS'!A20,\"N/A\")","v":"N/A"}]
["Combined Programs"]
[{"$f":"IF('HRSA 100-1-B CH GME PROG STATUS'!C22=\"a\",'HRSA 100-1-B CH GME PROG STATUS'!A22,\"N/A\")","v":"N/A"}]
[{"$f":"IF('HRSA 100-1-B CH GME PROG STATUS'!C23=\"a\",'HRSA 100-1-B CH GME PROG STATUS'!A23,\"N/A\")","v":"N/A"}]
[{"$f":"IF('HRSA 100-1-B CH GME PROG STATUS'!C24=\"a\",'HRSA 100-1-B CH GME PROG STATUS'!A24,\"N/A\")","v":"N/A"}]
[{"$f":"IF('HRSA 100-1-B CH GME PROG STATUS'!C25=\"a\",'HRSA 100-1-B CH GME PROG STATUS'!A25,\"N/A\")","v":"N/A"}]
[{"$f":"IF('HRSA 100-1-B CH GME PROG STATUS'!C26=\"a\",'HRSA 100-1-B CH GME PROG STATUS'!A26,\"N/A\")","v":"N/A"}]
[{"$f":"IF('HRSA 100-1-B CH GME PROG STATUS'!C27=\"a\",'HRSA 100-1-B CH GME PROG STATUS'!A27,\"N/A\")","v":"N/A"}]
["Pediatric Medical Subspecialties"]
[{"$f":"IF('HRSA 100-1-B CH GME PROG STATUS'!C29=\"a\",'HRSA 100-1-B CH GME PROG STATUS'!A29,\"N/A\")","v":"N/A"}]
[{"$f":"IF('HRSA 100-1-B CH GME PROG STATUS'!C30=\"a\",'HRSA 100-1-B CH GME PROG STATUS'!A30,\"N/A\")","v":"N/A"}]
[{"$f":"IF('HRSA 100-1-B CH GME PROG STATUS'!C31=\"a\",'HRSA 100-1-B CH GME PROG STATUS'!A31,\"N/A\")","v":"N/A"}]
[{"$f":"IF('HRSA 100-1-B CH GME PROG STATUS'!C32=\"a\",'HRSA 100-1-B CH GME PROG STATUS'!A32,\"N/A\")","v":"N/A"}]
[{"$f":"IF('HRSA 100-1-B CH GME PROG STATUS'!C33=\"a\",'HRSA 100-1-B CH GME PROG STATUS'!A33,\"N/A\")","v":"N/A"}]
[{"$f":"IF('HRSA 100-1-B CH GME PROG STATUS'!C34=\"a\",'HRSA 100-1-B CH GME PROG STATUS'!A34,\"N/A\")","v":"N/A"}]
[{"$f":"IF('HRSA 100-1-B CH GME PROG STATUS'!C35=\"a\",'HRSA 100-1-B CH GME PROG STATUS'!A35,\"N/A\")","v":"N/A"}]
[{"$f":"IF('HRSA 100-1-B CH GME PROG STATUS'!C36=\"a\",'HRSA 100-1-B CH GME PROG STATUS'!A36,\"N/A\")","v":"N/A"}]
[{"$f":"IF('HRSA 100-1-B CH GME PROG STATUS'!C37=\"a\",'HRSA 100-1-B CH GME PROG STATUS'!A37,\"N/A\")","v":"N/A"}]
[{"$f":"IF('HRSA 100-1-B CH GME PROG STATUS'!C38=\"a\",'HRSA 100-1-B CH GME PROG STATUS'!A38,\"N/A\")","v":"N/A"}]
[{"$f":"IF('HRSA 100-1-B CH GME PROG STATUS'!C39=\"a\",'HRSA 100-1-B CH GME PROG STATUS'!A39,\"N/A\")","v":"N/A"}]
[{"$f":"IF('HRSA 100-1-B CH GME PROG STATUS'!C40=\"a\",'HRSA 100-1-B CH GME PROG STATUS'!A40,\"N/A\")","v":"N/A"}]
[{"$f":"IF('HRSA 100-1-B CH GME PROG STATUS'!C41=\"a\",'HRSA 100-1-B CH GME PROG STATUS'!A41,\"N/A\")","v":"N/A"}]
[{"$f":"IF('HRSA 100-1-B CH GME PROG STATUS'!C42=\"a\",'HRSA 100-1-B CH GME PROG STATUS'!A42,\"N/A\")","v":"N/A"}]
[{"$f":"IF('HRSA 100-1-B CH GME PROG STATUS'!C43=\"a\",'HRSA 100-1-B CH GME PROG STATUS'!A43,\"N/A\")","v":"N/A"}]
[{"$f":"IF('HRSA 100-1-B CH GME PROG STATUS'!C44=\"a\",'HRSA 100-1-B CH GME PROG STATUS'!A44,\"N/A\")","v":"N/A"}]
[{"$f":"IF('HRSA 100-1-B CH GME PROG STATUS'!C45=\"a\",'HRSA 100-1-B CH GME PROG STATUS'!A45,\"N/A\")","v":"N/A"}]
[{"$f":"IF('HRSA 100-1-B CH GME PROG STATUS'!C46=\"a\",'HRSA 100-1-B CH GME PROG STATUS'!A46,\"N/A\")","v":"N/A"}]
[{"$f":"IF('HRSA 100-1-B CH GME PROG STATUS'!C47=\"a\",'HRSA 100-1-B CH GME PROG STATUS'!A47,\"N/A\")","v":"N/A"}]
["Pediatric Surgical Subspecialties"]
[{"$f":"IF('HRSA 100-1-B CH GME PROG STATUS'!C49=\"a\",'HRSA 100-1-B CH GME PROG STATUS'!A49,\"N/A\")","v":"N/A"}]
[{"$f":"IF('HRSA 100-1-B CH GME PROG STATUS'!C50=\"a\",'HRSA 100-1-B CH GME PROG STATUS'!A50,\"N/A\")","v":"N/A"}]
[{"$f":"IF('HRSA 100-1-B CH GME PROG STATUS'!C51=\"a\",'HRSA 100-1-B CH GME PROG STATUS'!A51,\"N/A\")","v":"N/A"}]
[{"$f":"IF('HRSA 100-1-B CH GME PROG STATUS'!C52=\"a\",'HRSA 100-1-B CH GME PROG STATUS'!A52,\"N/A\")","v":"N/A"}]
[{"$f":"IF('HRSA 100-1-B CH GME PROG STATUS'!C53=\"a\",'HRSA 100-1-B CH GME PROG STATUS'!A53,\"N/A\")","v":"N/A"}]
[{"$f":"IF('HRSA 100-1-B CH GME PROG STATUS'!C54=\"a\",'HRSA 100-1-B CH GME PROG STATUS'!A54,\"N/A\")","v":"N/A"}]
[{"$f":"IF('HRSA 100-1-B CH GME PROG STATUS'!C55=\"a\",'HRSA 100-1-B CH GME PROG STATUS'!A55,\"N/A\")","v":"N/A"}]
["Other Specialties"]
[{"$f":"IF('HRSA 100-1-B CH GME PROG STATUS'!C57=\"a\",'HRSA 100-1-B CH GME PROG STATUS'!A57,\"N/A\")","v":"N/A"}]
[{"$f":"IF('HRSA 100-1-B CH GME PROG STATUS'!C58=\"a\",'HRSA 100-1-B CH GME PROG STATUS'!A58,\"N/A\")","v":"N/A"}]
[{"$f":"IF('HRSA 100-1-B CH GME PROG STATUS'!C59=\"a\",'HRSA 100-1-B CH GME PROG STATUS'!A59,\"N/A\")","v":"N/A"}]
[{"$f":"IF('HRSA 100-1-B CH GME PROG STATUS'!C60=\"a\",'HRSA 100-1-B CH GME PROG STATUS'!A60,\"N/A\")","v":"N/A"}]
[{"$f":"IF('HRSA 100-1-B CH GME PROG STATUS'!C61=\"a\",'HRSA 100-1-B CH GME PROG STATUS'!A61,\"N/A\")","v":"N/A"}]
[{"$f":"IF('HRSA 100-1-B CH GME PROG STATUS'!C62=\"a\",'HRSA 100-1-B CH GME PROG STATUS'!A62,\"N/A\")","v":"N/A"}]
[{"$f":"IF('HRSA 100-1-B CH GME PROG STATUS'!C63=\"a\",'HRSA 100-1-B CH GME PROG STATUS'!A63,\"N/A\")","v":"N/A"}]
[{"$f":"IF('HRSA 100-1-B CH GME PROG STATUS'!C64=\"a\",'HRSA 100-1-B CH GME PROG STATUS'!A64,\"N/A\")","v":"N/A"}]
["General (Non-pediatric) Specialties"]
[{"$f":"IF('HRSA 100-1-B CH GME PROG STATUS'!C66=\"a\",'HRSA 100-1-B CH GME PROG STATUS'!A66,\"N/A\")","v":"N/A"}]
[{"$f":"IF('HRSA 100-1-B CH GME PROG STATUS'!C67=\"a\",'HRSA 100-1-B CH GME PROG STATUS'!A67,\"N/A\")","v":"N/A"}]
[{"$f":"IF('HRSA 100-1-B CH GME PROG STATUS'!C68=\"a\",'HRSA 100-1-B CH GME PROG STATUS'!A68,\"N/A\")","v":"N/A"}]
[{"$f":"IF('HRSA 100-1-B CH GME PROG STATUS'!C69=\"a\",'HRSA 100-1-B CH GME PROG STATUS'!A69,\"N/A\")","v":"N/A"}]
[{"$f":"IF('HRSA 100-1-B CH GME PROG STATUS'!C70=\"a\",'HRSA 100-1-B CH GME PROG STATUS'!A70,\"N/A\")","v":"N/A"}]
[{"$f":"IF('HRSA 100-1-B CH GME PROG STATUS'!C71=\"a\",'HRSA 100-1-B CH GME PROG STATUS'!A71,\"N/A\")","v":"N/A"}]
[{"$f":"IF('HRSA 100-1-B CH GME PROG STATUS'!C72=\"a\",'HRSA 100-1-B CH GME PROG STATUS'!A72,\"N/A\")","v":"N/A"}]
[{"$f":"IF('HRSA 100-1-B CH GME PROG STATUS'!C73=\"a\",'HRSA 100-1-B CH GME PROG STATUS'!A73,\"N/A\")","v":"N/A"}]
[{"$f":"IF('HRSA 100-1-B CH GME PROG STATUS'!C74=\"a\",'HRSA 100-1-B CH GME PROG STATUS'!A74,\"N/A\")","v":"N/A"}]
[{"$f":"IF('HRSA 100-1-B CH GME PROG STATUS'!C75=\"a\",'HRSA 100-1-B CH GME PROG STATUS'!A75,\"N/A\")","v":"N/A"}]
[{"$f":"IF('HRSA 100-1-B CH GME PROG STATUS'!C76=\"a\",'HRSA 100-1-B CH GME PROG STATUS'!A76,\"N/A\")","v":"N/A"}]
[{"$f":"IF('HRSA 100-1-B CH GME PROG STATUS'!C77=\"a\",'HRSA 100-1-B CH GME PROG STATUS'!A77,\"N/A\")","v":"N/A"}]
[{"$f":"IF('HRSA 100-1-B CH GME PROG STATUS'!C78=\"a\",'HRSA 100-1-B CH GME PROG STATUS'!A78,\"N/A\")","v":"N/A"}]
[{"$f":"IF('HRSA 100-1-B CH GME PROG STATUS'!C79=\"a\",'HRSA 100-1-B CH GME PROG STATUS'!A79,\"N/A\")","v":"N/A"}]
[{"$f":"IF('HRSA 100-1-B CH GME PROG STATUS'!C80=\"a\",'HRSA 100-1-B CH GME PROG STATUS'!A80,\"N/A\")","v":"N/A"}]
[{"$f":"IF('HRSA 100-1-B CH GME PROG STATUS'!C81=\"a\",'HRSA 100-1-B CH GME PROG STATUS'!A81,\"N/A\")","v":"N/A"}]
[{"$f":"IF('HRSA 100-1-B CH GME PROG STATUS'!C82=\"a\",'HRSA 100-1-B CH GME PROG STATUS'!A82,\"N/A\")","v":"N/A"}]
[{"$f":"IF('HRSA 100-1-B CH GME PROG STATUS'!C83=\"a\",'HRSA 100-1-B CH GME PROG STATUS'!A83,\"N/A\")","v":"N/A"}]
[{"$f":"IF('HRSA 100-1-B CH GME PROG STATUS'!C84=\"a\",'HRSA 100-1-B CH GME PROG STATUS'!A84,\"N/A\")","v":"N/A"}]
[{"$f":"IF('HRSA 100-1-B CH GME PROG STATUS'!C85=\"a\",'HRSA 100-1-B CH GME PROG STATUS'!A85,\"N/A\")","v":"N/A"}]
[{"$f":"IF('HRSA 100-1-B CH GME PROG STATUS'!C86=\"a\",'HRSA 100-1-B CH GME PROG STATUS'!A86,\"N/A\")","v":"N/A"}]
[{"$f":"IF('HRSA 100-1-B CH GME PROG STATUS'!C87=\"a\",'HRSA 100-1-B CH GME PROG STATUS'!A87,\"N/A\")","v":"N/A"}]
[{"$f":"IF('HRSA 100-1-B CH GME PROG STATUS'!C88=\"a\",'HRSA 100-1-B CH GME PROG STATUS'!A88,\"N/A\")","v":"N/A"}]
[{"$f":"IF('HRSA 100-1-B CH GME PROG STATUS'!C89=\"a\",VLOOKUP('HRSA 100-1-B CH GME PROG STATUS'!A89,Program_Name,2,FALSE),\"N/A\")","v":"N/A"}]
[{"$f":"IF('HRSA 100-1-B CH GME PROG STATUS'!C90=\"a\",VLOOKUP('HRSA 100-1-B CH GME PROG STATUS'!A90,Program_Name,2,FALSE),\"N/A\")","v":"N/A"}]
[{"$f":"IF('HRSA 100-1-B CH GME PROG STATUS'!C91=\"a\",VLOOKUP('HRSA 100-1-B CH GME PROG STATUS'!A91,Program_Name,2,FALSE),\"N/A\")","v":"N/A"}]
[{"$f":"IF('HRSA 100-1-B CH GME PROG STATUS'!C92=\"a\",VLOOKUP('HRSA 100-1-B CH GME PROG STATUS'!A92,Program_Name,2,FALSE),\"N/A\")","v":"N/A"}]
[{"$f":"IF('HRSA 100-1-B CH GME PROG STATUS'!C93=\"a\",VLOOKUP('HRSA 100-1-B CH GME PROG STATUS'!A93,Program_Name,2,FALSE),\"N/A\")","v":"N/A"}]
[{"$f":"IF('HRSA 100-1-B CH GME PROG STATUS'!C94=\"a\",VLOOKUP('HRSA 100-1-B CH GME PROG STATUS'!A94,Program_Name,2,FALSE),\"N/A\")","v":"N/A"}]
[{"$f":"IF('HRSA 100-1-B CH GME PROG STATUS'!C95=\"a\",VLOOKUP('HRSA 100-1-B CH GME PROG STATUS'!A95,Program_Name,2,FALSE),\"N/A\")","v":"N/A"}]
[{"$f":"IF('HRSA 100-1-B CH GME PROG STATUS'!C96=\"a\",VLOOKUP('HRSA 100-1-B CH GME PROG STATUS'!A96,Program_Name,2,FALSE),\"N/A\")","v":"N/A"}]
[{"$f":"IF('HRSA 100-1-B CH GME PROG STATUS'!C97=\"a\",VLOOKUP('HRSA 100-1-B CH GME PROG STATUS'!A97,Program_Name,2,FALSE),\"N/A\")","v":"N/A"}]
[{"$f":"IF('HRSA 100-1-B CH GME PROG STATUS'!C98=\"a\",VLOOKUP('HRSA 100-1-B CH GME PROG STATUS'!A98,Program_Name,2,FALSE),\"N/A\")","v":"N/A"}]
[{"$f":"IF('HRSA 100-1-B CH GME PROG STATUS'!C99=\"a\",VLOOKUP('HRSA 100-1-B CH GME PROG STATUS'!A99,Program_Name,2,FALSE),\"N/A\")","v":"N/A"}]
[{"$f":"IF('HRSA 100-1-B CH GME PROG STATUS'!C100=\"a\",VLOOKUP('HRSA 100-1-B CH GME PROG STATUS'!A100,Program_Name,2,FALSE),\"N/A\")","v":"N/A"}]
[{"$f":"IF('HRSA 100-1-B CH GME PROG STATUS'!C101=\"a\",VLOOKUP('HRSA 100-1-B CH GME PROG STATUS'!A101,Program_Name,2,FALSE),\"N/A\")","v":"N/A"}]
[{"$f":"IF('HRSA 100-1-B CH GME PROG STATUS'!C102=\"a\",VLOOKUP('HRSA 100-1-B CH GME PROG STATUS'!A102,Program_Name,2,FALSE),\"N/A\")","v":"N/A"}]
[{"$f":"IF('HRSA 100-1-B CH GME PROG STATUS'!C103=\"a\",VLOOKUP('HRSA 100-1-B CH GME PROG STATUS'!A103,Program_Name,2,FALSE),\"N/A\")","v":"N/A"}]
[{"$f":"IF('HRSA 100-1-B CH GME PROG STATUS'!C104=\"a\",VLOOKUP('HRSA 100-1-B CH GME PROG STATUS'!A104,Program_Name,2,FALSE),\"N/A\")","v":"N/A"}]
[{"$f":"IF('HRSA 100-1-B CH GME PROG STATUS'!C105=\"a\",VLOOKUP('HRSA 100-1-B CH GME PROG STATUS'!A105,Program_Name,2,FALSE),\"N/A\")","v":"N/A"}]
[{"$f":"IF('HRSA 100-1-B CH GME PROG STATUS'!C106=\"a\",VLOOKUP('HRSA 100-1-B CH GME PROG STATUS'!A106,Program_Name,2,FALSE),\"N/A\")","v":"N/A"}]
[{"$f":"IF('HRSA 100-1-B CH GME PROG STATUS'!C107=\"a\",VLOOKUP('HRSA 100-1-B CH GME PROG STATUS'!A107,Program_Name,2,FALSE),\"N/A\")","v":"N/A"}]
[{"$f":"IF('HRSA 100-1-B CH GME PROG STATUS'!C108=\"a\",VLOOKUP('HRSA 100-1-B CH GME PROG STATUS'!A108,Program_Name,2,FALSE),\"N/A\")","v":"N/A"}]
[{"$f":"IF('HRSA 100-1-B CH GME PROG STATUS'!C109=\"a\",VLOOKUP('HRSA 100-1-B CH GME PROG STATUS'!A109,Program_Name,2,FALSE),\"N/A\")","v":"N/A"}]
[{"$f":"IF('HRSA 100-1-B CH GME PROG STATUS'!C110=\"a\",VLOOKUP('HRSA 100-1-B CH GME PROG STATUS'!A110,Program_Name,2,FALSE),\"N/A\")","v":"N/A"}]
[{"$f":"IF('HRSA 100-1-B CH GME PROG STATUS'!C111=\"a\",VLOOKUP('HRSA 100-1-B CH GME PROG STATUS'!A111,Program_Name,2,FALSE),\"N/A\")","v":"N/A"}]
[{"$f":"IF('HRSA 100-1-B CH GME PROG STATUS'!C112=\"a\",VLOOKUP('HRSA 100-1-B CH GME PROG STATUS'!A112,Program_Name,2,FALSE),\"N/A\")","v":"N/A"}]
[{"$f":"IF('HRSA 100-1-B CH GME PROG STATUS'!C113=\"a\",VLOOKUP('HRSA 100-1-B CH GME PROG STATUS'!A113,Program_Name,2,FALSE),\"N/A\")","v":"N/A"}]
[{"$f":"IF('HRSA 100-1-B CH GME PROG STATUS'!C114=\"a\",VLOOKUP('HRSA 100-1-B CH GME PROG STATUS'!A114,'..'!B2:C130,2,FALSE),\"N/A\")","v":"N/A"}]
[{"$f":"IF('HRSA 100-1-B CH GME PROG STATUS'!C115=\"a\",VLOOKUP('HRSA 100-1-B CH GME PROG STATUS'!A115,Program_Name,2,FALSE),\"N/A\")","v":"N/A"}]
[{"$f":"IF('HRSA 100-1-B CH GME PROG STATUS'!C116=\"a\",VLOOKUP('HRSA 100-1-B CH GME PROG STATUS'!A116,Program_Name,2,FALSE),\"N/A\")","v":"N/A"}]
[{"$f":"IF('HRSA 100-1-B CH GME PROG STATUS'!C117=\"a\",VLOOKUP('HRSA 100-1-B CH GME PROG STATUS'!A117,Program_Name,2,FALSE),\"N/A\")","v":"N/A"}]
[{"$f":"IF('HRSA 100-1-B CH GME PROG STATUS'!C118=\"a\",VLOOKUP('HRSA 100-1-B CH GME PROG STATUS'!A118,Program_Name,2,FALSE),\"N/A\")","v":"N/A"}]
[" a. Refers to program in which residents first completed an emergency medicine residency followed by a pediatric emergency medicine fellowship versus initially completing a pediatric residency followed by a pediatric emergency medicine fellowship."]

{"sheet":"HRSA 100-1-E LIST OF PROGRAMS","index":5,"n_rows":106,"n_cols":6,"rows_kept":106,"merged":[[0,1,0,2],[1,1,1,2],[2,1,2,5],[3,1,3,5],[4,2,4,5],[5,2,5,5],[6,2,6,5],[7,1,7,5]]}
[null,"Department of Health and Human Services",{"$nulls":3},"OMB No. 0915-0313"]
[null,"Health Resources and Services Administration",{"$nulls":3},"Expiration Date:  11/30/2013"]
[null,"Children's Hospitals Graduate Medical Education Payment Program"]
[null,"HRSA 100-1-E:  Programs for which an Annual Report is Required"]
[null,"Hospital Name:",{"$f":"+'HRSA 100-1-A CHILDREN''S HOSP ID'!B6","v":0}]
[null,{"$f":"+'HRSA 100-1-D NO OF TRAINEES ROT'!A6","v":"Medicare Provider Number:"},{"$f":"+'HRSA 100-1-A CHILDREN''S HOSP ID'!B11","v":{"v":0,"d":"00-0000"}}]
[null,{"$f":"+'HRSA 100-1-D NO OF TRAINEES ROT'!A7","v":"Date of Report:"},{"$f":"+'HRSA 100-1-A CHILDREN''S HOSP ID'!B15","v":"00:00:00"}]
[null,"For each program listed below, you must complete the HRSA 100-2 with hospital level data and one HRSA 100-3 for each program listed.  Be sure to scroll to the bottom of worksheet to see all highlighted programs.  See detailed guidance for complete instructions.  "]
[null," "]
[{"$f":"1","v":1},{"$f":"IF(C10,'HRSA 100-1-B CH GME PROG STATUS'!A19,\"N/A\")","v":"N/A"},{"$f":"OR('HRSA 100-1-C NO. OF TRAINEES SI'!E12>0,'HRSA 100-1-D NO OF TRAINEES ROT'!F17>0)","v":false}]
[{"$f":"1+A10","v":2},{"$f":"IF(C11,'HRSA 100-1-B CH GME PROG STATUS'!A20,\"N/A\")","v":"N/A"},{"$f":"OR('HRSA 100-1-C NO. OF TRAINEES SI'!E13>0,'HRSA 100-1-D NO OF TRAINEES ROT'!F18>0)","v":false}]
[{"$f":"1+A11","v":3},{"$f":"IF(C12,'HRSA 100-1-B CH GME PROG STATUS'!A22,\"N/A\")","v":"N/A"},{"$f":"OR('HRSA 100-1-C NO. OF TRAINEES SI'!E15>0,'HRSA 100-1-D NO OF TRAINEES ROT'!F20>0)","v":false}]
[4,{"$f":"IF(C13,'HRSA 100-1-B CH GME PROG STATUS'!A23,\"N/A\")","v":"N/A"},{"$f":"OR('HRSA 100-1-C NO. OF TRAINEES SI'!E16>0,'HRSA 100-1-D NO OF TRAINEES ROT'!F21>0)","v":false}]
[5,{"$f":"IF(C14,'HRSA 100-1-B CH GME PROG STATUS'!A24,\"N/A\")","v":"N/A"},{"$f":"OR('HRSA 100-1-C NO. OF TRAINEES SI'!E17>0,'HRSA 100-1-D NO OF TRAINEES ROT'!F22>0)","v":false}]
[6,{"$f":"IF(C15,'HRSA 100-1-B CH GME PROG STATUS'!A25,\"N/A\")","v":"N/A"},{"$f":"OR('HRSA 100-1-C NO. OF TRAINEES SI'!E18>0,'HRSA 100-1-D NO OF TRAINEES ROT'!F23>0)","v":false}]
[7,{"$f":"IF(C16,'HRSA 100-1-B CH GME PROG STATUS'!A26,\"N/A\")","v":"N/A"},{"$f":"OR('HRSA 100-1-C NO. OF TRAINEES SI'!E19>0,'HRSA 100-1-D NO OF TRAINEES ROT'!F24>0)","v":false}]
[8,{"$f":"IF(C17,'HRSA 100-1-B CH GME PROG STATUS'!A27,\"N/A\")","v":"N/A"},{"$f":"OR('HRSA 100-1-C NO. OF TRAINEES SI'!E20>0,'HRSA 100-1-D NO OF TRAINEES ROT'!F25>0)","v":false}]
[9,{"$f":"IF(C18,'HRSA 100-1-B CH GME PROG STATUS'!A29,\"N/A\")","v":"N/A"},{"$f":"OR('HRSA 100-1-C NO. OF TRAINEES SI'!E22>0,'HRSA 100-1-D NO OF TRAINEES ROT'!F27>0)","v":false}]
[10,{"$f":"IF(C19,'HRSA 100-1-B CH GME PROG STATUS'!A30,\"N/A\")","v":"N/A"},{"$f":"OR('HRSA 100-1-C NO. OF TRAINEES SI'!E23>0,'HRSA 100-1-D NO OF TRAINEES ROT'!F28>0)","v":false}]
[11,{"$f":"IF(C20,'HRSA 100-1-B CH GME PROG STATUS'!A31,\"N/A\")","v":"N/A"},{"$f":"OR('HRSA 100-1-C NO. OF TRAINEES SI'!E24>0,'HRSA 100-1-D NO OF TRAINEES ROT'!F29>0)","v":false}]
[12,{"$f":"IF(C21,'HRSA 100-1-B CH GME PROG STATUS'!A32,\"N/A\")","v":"N/A"},{"$f":"OR('HRSA 100-1-C NO. OF TRAINEES SI'!E25>0,'HRSA 100-1-D NO OF TRAINEES ROT'!F30>0)","v":false}]
[13,{"$f":"IF(C22,'HRSA 100-1-B CH GME PROG STATUS'!A33,\"N/A\")","v":"N/A"},{"$f":"OR('HRSA 100-1-C NO. OF TRAINEES SI'!E26>0,'HRSA 100-1-D NO OF TRAINEES ROT'!F31>0)","v":false}]
[14,{"$f":"IF(C23,'HRSA 100-1-B CH GME PROG STATUS'!A34,\"N/A\")","v":"N/A"},{"$f":"OR('HRSA 100-1-C NO. OF TRAINEES SI'!E27>0,'HRSA 100-1-D NO OF TRAINEES ROT'!F32>0)","v":false}]
[15,{"$f":"IF(C24,'HRSA 100-1-B CH GME PROG STATUS'!A35,\"N/A\")","v":"N/A"},{"$f":"OR('HRSA 100-1-C NO. OF TRAINEES SI'!E28>0,'HRSA 100-1-D NO OF TRAINEES ROT'!F33>0)","v":false}]
[16,{"$f":"IF(C25,'HRSA 100-1-B CH GME PROG STATUS'!A36,\"N/A\")","v":"N/A"},{"$f":"OR('HRSA 100-1-C NO. OF TRAINEES SI'!E29>0,'HRSA 100-1-D NO OF TRAINEES ROT'!F34>0)","v":false}]
[17,{"$f":"IF(C26,'HRSA 100-1-B CH GME PROG STATUS'!A37,\"N/A\")","v":"N/A"},{"$f":"OR('HRSA 100-1-C NO. OF TRAINEES SI'!E30>0,'HRSA 100-1-D NO OF TRAINEES ROT'!F35>0)","v":false}]
[18,{"$f":"IF(C27,'HRSA 100-1-B CH GME PROG STATUS'!A38,\"N/A\")","v":"N/A"},{"$f":"OR('HRSA 100-1-C NO. OF TRAINEES SI'!E31>0,'HRSA 100-1-D NO OF TRAINEES ROT'!F36>0)","v":false}]
[19,{"$f":"IF(C28,'HRSA 100-1-B CH GME PROG STATUS'!A39,\"N/A\")","v":"N/A"},{"$f":"OR('HRSA 100-1-C NO. OF TRAINEES SI'!E32>0,'HRSA 100-1-D NO OF TRAINEES ROT'!F37>0)","v":false}]
[20,null,{"$f":"OR('HRSA 100-1-C NO. OF TRAINEES SI'!E33>0,'HRSA 100-1-D NO OF TRAINEES ROT'!F38>0)","v":false}]
[21,{"$f":"IF(C30,'HRSA 100-1-B CH GME PROG STATUS'!A41,\"N/A\")","v":"N/A"},{"$f":"OR('HRSA 100-1-C NO. OF TRAINEES SI'!E34>0,'HRSA 100-1-D NO OF TRAINEES ROT'!F39>0)","v":false}]
[22,{"$f":"IF(C31,'HRSA 100-1-B CH GME PROG STATUS'!A42,\"N/A\")","v":"N/A"},{"$f":"OR('HRSA 100-1-C NO. OF TRAINEES SI'!E35>0,'HRSA 100-1-D NO OF TRAINEES ROT'!F40>0)","v":false}]
[23,{"$f":"IF(C32,'HRSA 100-1-B CH GME PROG STATUS'!A43,\"N/A\")","v":"N/A"},{"$f":"OR('HRSA 100-1-C NO. OF TRAINEES SI'!E36>0,'HRSA 100-1-D NO OF TRAINEES ROT'!F41>0)","v":false}]
[24,{"$f":"IF(C33,'HRSA 100-1-B CH GME PROG STATUS'!A44,\"N/A\")","v":"N/A"},{"$f":"OR('HRSA 100-1-C NO. OF TRAINEES SI'!E37>0,'HRSA 100-1-D NO OF TRAINEES ROT'!F42>0)","v":false}]
[25,{"$f":"IF(C34,'HRSA 100-1-B CH GME PROG STATUS'!A45,\"N/A\")","v":"N/A"},{"$f":"OR('HRSA 100-1-C NO. OF TRAINEES SI'!E38>0,'HRSA 100-1-D NO OF TRAINEES ROT'!F43>0)","v":false}]
[26,{"$f":"IF(C35,'HRSA 100-1-B CH GME PROG STATUS'!A46,\"N/A\")","v":"N/A"},{"$f":"OR('HRSA 100-1-C NO. OF TRAINEES SI'!E39>0,'HRSA 100-1-D NO OF TRAINEES ROT'!F44>0)","v":false}]
[27,{"$f":"IF(C36,'HRSA 100-1-B CH GME PROG STATUS'!A47,\"N/A\")","v":"N/A"},{"$f":"OR('HRSA 100-1-C NO. OF TRAINEES SI'!E40>0,'HRSA 100-1-D NO OF TRAINEES ROT'!F45>0)","v":false}]
[28,{"$f":"IF(C37,'HRSA 100-1-B CH GME PROG STATUS'!A49,\"N/A\")","v":"N/A"},{"$f":"OR('HRSA 100-1-C NO. OF TRAINEES SI'!E42>0,'HRSA 100-1-D NO OF TRAINEES ROT'!F47>0)","v":false}]
[29,{"$f":"IF(C38,'HRSA 100-1-B CH GME PROG STATUS'!A50,\"N/A\")","v":"N/A"},{"$f":"OR('HRSA 100-1-C NO. OF TRAINEES SI'!E43>0,'HRSA 100-1-D NO OF TRAINEES ROT'!F48>0)","v":false}]
[30,{"$f":"IF(C39,'HRSA 100-1-B CH GME PROG STATUS'!A51,\"N/A\")","v":"N/A"},{"$f":"OR('HRSA 100-1-C NO. OF TRAINEES SI'!E44>0,'HRSA 100-1-D NO OF TRAINEES ROT'!F49>0)","v":false}]
[31,{"$f":"IF(C40,'HRSA 100-1-B CH GME PROG STATUS'!A52,\"N/A\")","v":"N/A"},{"$f":"OR('HRSA 100-1-C NO. OF TRAINEES SI'!E45>0,'HRSA 100-1-D NO OF TRAINEES ROT'!F50>0)","v":false}]
[32,{"$f":"IF(C41,'HRSA 100-1-B CH GME PROG STATUS'!A53,\"N/A\")","v":"N/A"},{"$f":"OR('HRSA 100-1-C NO. OF TRAINEES SI'!E46>0,'HRSA 100-1-D NO OF TRAINEES ROT'!F51>0)","v":false}]
[33,null,{"$f":"OR('HRSA 100-1-C NO. OF TRAINEES SI'!E47>0,'HRSA 100-1-D NO OF TRAINEES ROT'!F52>0)","v":false}]
[34,{"$f":"IF(C43,'HRSA 100-1-B CH GME PROG STATUS'!A55,\"N/A\")","v":"N/A"},{"$f":"OR('HRSA 100-1-C NO. OF TRAINEES SI'!E48>0,'HRSA 100-1-D NO OF TRAINEES ROT'!F53>0)","v":false}]
[35,{"$f":"IF(C44,'HRSA 100-1-B CH GME PROG STATUS'!A57,\"N/A\")","v":"N/A"},{"$f":"OR('HRSA 100-1-C NO. OF TRAINEES SI'!E50>0,'HRSA 100-1-D NO OF TRAINEES ROT'!F55>0)","v":false}]
[36,{"$f":"IF(C45,'HRSA 100-1-B CH GME PROG STATUS'!A58,\"N/A\")","v":"N/A"},{"$f":"OR('HRSA 100-1-C NO. OF TRAINEES SI'!E51>0,'HRSA 100-1-D NO OF TRAINEES ROT'!F56>0)","v":false}]
[37,{"$f":"IF(C46,'HRSA 100-1-B CH GME PROG STATUS'!A59,\"N/A\")","v":"N/A"},{"$f":"OR('HRSA 100-1-C NO. OF TRAINEES SI'!E52>0,'HRSA 100-1-D NO OF TRAINEES ROT'!F57>0)","v":false}]
[38,{"$f":"IF(C47,'HRSA 100-1-B CH GME PROG STATUS'!A60,\"N/A\")","v":"N/A"},{"$f":"OR('HRSA 100-1-C NO. OF TRAINEES SI'!E53>0,'HRSA 100-1-D NO OF TRAINEES ROT'!F58>0)","v":false}]
[39,{"$f":"IF(C48,'HRSA 100-1-B CH GME PROG STATUS'!A61,\"N/A\")","v":"N/A"},{"$f":"OR('HRSA 100-1-C NO. OF TRAINEES SI'!E54>0,'HRSA 100-1-D NO OF TRAINEES ROT'!F59>0)","v":false}]
[40,{"$f":"IF(C49,'HRSA 100-1-B CH GME PROG STATUS'!A62,\"N/A\")","v":"N/A"},{"$f":"OR('HRSA 100-1-C NO. OF TRAINEES SI'!E55>0,'HRSA 100-1-D NO OF TRAINEES ROT'!F60>0)","v":false}]
[41,null,{"$f":"OR('HRSA 100-1-C NO. OF TRAINEES SI'!E56>0,'HRSA 100-1-D NO OF TRAINEES ROT'!F61>0)","v":false}]
[42,{"$f":"IF(C51,'HRSA 100-1-B CH GME PROG STATUS'!A64,\"N/A\")","v":"N/A"},{"$f":"OR('HRSA 100-1-C NO. OF TRAINEES SI'!E57>0,'HRSA 100-1-D NO OF TRAINEES ROT'!F62>0)","v":false}]
[43,{"$f":"IF(C52,'HRSA 100-1-B CH GME PROG STATUS'!A66,\"N/A\")","v":"N/A"},{"$f":"OR('HRSA 100-1-C NO. OF TRAINEES SI'!E59>0,'HRSA 100-1-D NO OF TRAINEES ROT'!F64>0)","v":false}]
[44,{"$f":"IF(C53,'HRSA 100-1-B CH GME PROG STATUS'!A67,\"N/A\")","v":"N/A"},{"$f":"OR('HRSA 100-1-C NO. OF TRAINEES SI'!E60>0,'HRSA 100-1-D NO OF TRAINEES ROT'!F65>0)","v":false}]
[45,{"$f":"IF(C54,'HRSA 100-1-B CH GME PROG STATUS'!A68,\"N/A\")","v":"N/A"},{"$f":"OR('HRSA 100-1-C NO. OF TRAINEES SI'!E61>0,'HRSA 100-1-D NO OF TRAINEES ROT'!F66>0)","v":false}]
[46,{"$f":"IF(C55,'HRSA 100-1-B CH GME PROG STATUS'!A69,\"N/A\")","v":"N/A"},{"$f":"OR('HRSA 100-1-C NO. OF TRAINEES SI'!E62>0,'HRSA 100-1-D NO OF TRAINEES ROT'!F67>0)","v":false}]
[47,{"$f":"IF(C56,'HRSA 100-1-B CH GME PROG STATUS'!A70,\"N/A\")","v":"N/A"},{"$f":"OR('HRSA 100-1-C NO. OF TRAINEES SI'!E63>0,'HRSA 100-1-D NO OF TRAINEES ROT'!F68>0)","v":false}]
[48,{"$f":"IF(C57,'HRSA 100-1-B CH GME PROG STATUS'!A71,\"N/A\")","v":"N/A"},{"$f":"OR('HRSA 100-1-C NO. OF TRAINEES SI'!E64>0,'HRSA 100-1-D NO OF TRAINEES ROT'!F69>0)","v":false}]
[49,{"$f":"IF(C58,'HRSA 100-1-B CH GME PROG STATUS'!A72,\"N/A\")","v":"N/A"},{"$f":"OR('HRSA 100-1-C NO. OF TRAINEES SI'!E65>0,'HRSA 100-1-D NO OF TRAINEES ROT'!F70>0)","v":false}]
[50,{"$f":"IF(C59,'HRSA 100-1-B CH GME PROG STATUS'!A73,\"N/A\")","v":"N/A"},{"$f":"OR('HRSA 100-1-C NO. OF TRAINEES SI'!E66>0,'HRSA 100-1-D NO OF TRAINEES ROT'!F71>0)","v":false}]
[51,{"$f":"IF(C60,'HRSA 100-1-B CH GME PROG STATUS'!A74,\"N/A\")","v":"N/A"},{"$f":"OR('HRSA 100-1-C NO. OF TRAINEES SI'!E67>0,'HRSA 100-1-D NO OF TRAINEES ROT'!F72>0)","v":false}]
[52,{"$f":"IF(C61,'HRSA 100-1-B CH GME PROG STATUS'!A75,\"N/A\")","v":"N/A"},{"$f":"OR('HRSA 100-1-C NO. OF TRAINEES SI'!E68>0,'HRSA 100-1-D NO OF TRAINEES ROT'!F73>0)","v":false}]
[53,{"$f":"IF(C62,'HRSA 100-1-B CH GME PROG STATUS'!A76,\"N/A\")","v":"N/A"},{"$f":"OR('HRSA 100-1-C NO. OF TRAINEES SI'!E69>0,'HRSA 100-1-D NO OF TRAINEES ROT'!F74>0)","v":false}]
[54,{"$f":"IF(C63,'HRSA 100-1-B CH GME PROG STATUS'!A77,\"N/A\")","v":"N/A"},{"$f":"OR('HRSA 100-1-C NO. OF TRAINEES SI'!E70>0,'HRSA 100-1-D NO OF TRAINEES ROT'!F75>0)","v":false}]
[55,{"$f":"IF(C64,'HRSA 100-1-B CH GME PROG STATUS'!A78,\"N/A\")","v":"N/A"},{"$f":"OR('HRSA 100-1-C NO. OF TRAINEES SI'!E71>0,'HRSA 100-1-D NO OF TRAINEES ROT'!F76>0)","v":false}]
[56,{"$f":"IF(C65,'HRSA 100-1-B CH GME PROG STATUS'!A79,\"N/A\")","v":"N/A"},{"$f":"OR('HRSA 100-1-C NO. OF TRAINEES SI'!E72>0,'HRSA 100-1-D NO OF TRAINEES ROT'!F77>0)","v":false}]
[57,{"$f":"IF(C66,'HRSA 100-1-B CH GME PROG STATUS'!A80,\"N/A\")","v":"N/A"},{"$f":"OR('HRSA 100-1-C NO. OF TRAINEES SI'!E73>0,'HRSA 100-1-D NO OF TRAINEES ROT'!F78>0)","v":false}]
[58,{"$f":"IF(C67,'HRSA 100-1-B CH GME PROG STATUS'!A81,\"N/A\")","v":"N/A"},{"$f":"OR('HRSA 100-1-C NO. OF TRAINEES SI'!E74>0,'HRSA 100-1-D NO OF TRAINEES ROT'!F79>0)","v":false}]
[59,{"$f":"IF(C68,'HRSA 100-1-B CH GME PROG STATUS'!A82,\"N/A\")","v":"N/A"},{"$f":"OR('HRSA 100-1-C NO. OF TRAINEES SI'!E75>0,'HRSA 100-1-D NO OF TRAINEES ROT'!F80>0)","v":false}]
[60,{"$f":"IF(C69,'HRSA 100-1-B CH GME PROG STATUS'!A83,\"N/A\")","v":"N/A"},{"$f":"OR('HRSA 100-1-C NO. OF TRAINEES SI'!E76>0,'HRSA 100-1-D NO OF TRAINEES ROT'!F81>0)","v":false}]
[61,{"$f":"IF(C70,'HRSA 100-1-B CH GME PROG STATUS'!A84,\"N/A\")","v":"N/A"},{"$f":"OR('HRSA 100-1-C NO. OF TRAINEES SI'!E77>0,'HRSA 100-1-D NO OF TRAINEES ROT'!F82>0)","v":false}]
[62,{"$f":"IF(C71,'HRSA 100-1-B CH GME PROG STATUS'!A85,\"N/A\")","v":"N/A"},{"$f":"OR('HRSA 100-1-C NO. OF TRAINEES SI'!E78>0,'HRSA 100-1-D NO OF TRAINEES ROT'!F83>0)","v":false}]
[63,{"$f":"IF(C72,'HRSA 100-1-B CH GME PROG STATUS'!A86,\"N/A\")","v":"N/A"},{"$f":"OR('HRSA 100-1-C NO. OF TRAINEES SI'!E79>0,'HRSA 100-1-D NO OF TRAINEES ROT'!F84>0)","v":false}]
[64,{"$f":"IF(C73,'HRSA 100-1-B CH GME PROG STATUS'!A87,\"N/A\")","v":"N/A"},{"$f":"OR('HRSA 100-1-C NO. OF TRAINEES SI'!E80>0,'HRSA 100-1-D NO OF TRAINEES ROT'!F85>0)","v":false}]
[65,{"$f":"IF(C74,'HRSA 100-1-B CH GME PROG STATUS'!A88,\"N/A\")","v":"N/A"},{"$f":"OR('HRSA 100-1-C NO. OF TRAINEES SI'!E81>0,'HRSA 100-1-D NO OF TRAINEES ROT'!F86>0)","v":false}]
[66,{"$f":"IF(C75,VLOOKUP('HRSA 100-1-B CH GME PROG STATUS'!A89,Program_Name,2,FALSE),\"N/A\")","v":"N/A"},{"$f":"OR('HRSA 100-1-C NO. OF TRAINEES SI'!E82>0,'HRSA 100-1-D NO OF TRAINEES ROT'!F87>0)","v":false}]
[{"$f":"1+A75","v":67},{"$f":"IF(C76,VLOOKUP('HRSA 100-1-B CH GME PROG STATUS'!A90,Program_Name,2,FALSE),\"N/A\")","v":"N/A"},{"$f":"OR('HRSA 100-1-C NO. OF TRAINEES SI'!E83>0,'HRSA 100-1-D NO OF TRAINEES ROT'!F88>0)","v":false}]
[68,{"$f":"IF(C77,VLOOKUP('HRSA 100-1-B CH GME PROG STATUS'!A91,Program_Name,2,FALSE),\"N/A\")","v":"N/A"},{"$f":"OR('HRSA 100-1-C NO. OF TRAINEES SI'!E84>0,'HRSA 100-1-D NO OF TRAINEES ROT'!F89>0)","v":false}]
[69,{"$f":"IF(C78,VLOOKUP('HRSA 100-1-B CH GME PROG STATUS'!A92,Program_Name,2,FALSE),\"N/A\")","v":"N/A"},{"$f":"OR('HRSA 100-1-C NO. OF TRAINEES SI'!E85>0,'HRSA 100-1-D NO OF TRAINEES ROT'!F90>0)","v":false}]
[70,{"$f":"IF(C79,VLOOKUP('HRSA 100-1-B CH GME PROG STATUS'!A93,Program_Name,2,FALSE),\"N/A\")","v":"N/A"},{"$f":"OR('HRSA 100-1-C NO. OF TRAINEES SI'!E86>0,'HRSA 100-1-D NO OF TRAINEES ROT'!F91>0)","v":false}]
[71,{"$f":"IF(C80,VLOOKUP('HRSA 100-1-B CH GME PROG STATUS'!A94,Program_Name,2,FALSE),\"N/A\")","v":"N/A"},{"$f":"OR('HRSA 100-1-C NO. OF TRAINEES SI'!E87>0,'HRSA 100-1-D NO OF TRAINEES ROT'!F92>0)","v":false}]
[72,{"$f":"IF(C81,VLOOKUP('HRSA 100-1-B CH GME PROG STATUS'!A95,Program_Name,2,FALSE),\"N/A\")","v":"N/A"},{"$f":"OR('HRSA 100-1-C NO. OF TRAINEES SI'!E88>0,'HRSA 100-1-D NO OF TRAINEES ROT'!F93>0)","v":false}]
[73,{"$f":"IF(C82,VLOOKUP('HRSA 100-1-B CH GME PROG STATUS'!A96,Program_Name,2,FALSE),\"N/A\")","v":"N/A"},{"$f":"OR('HRSA 100-1-C NO. OF TRAINEES SI'!E89>0,'HRSA 100-1-D NO OF TRAINEES ROT'!F94>0)","v":false}]
[74,{"$f":"IF(C83,VLOOKUP('HRSA 100-1-B CH GME PROG STATUS'!A97,Program_Name,2,FALSE),\"N/A\")","v":"N/A"},{"$f":"OR('HRSA 100-1-C NO. OF TRAINEES SI'!E90>0,'HRSA 100-1-D NO OF TRAINEES ROT'!F95>0)","v":false}]
[75,{"$f":"IF(C84,VLOOKUP('HRSA 100-1-B CH GME PROG STATUS'!A98,Program_Name,2,FALSE),\"N/A\")","v":"N/A"},{"$f":"OR('HRSA 100-1-C NO. OF TRAINEES SI'!E91>0,'HRSA 100-1-D NO OF TRAINEES ROT'!F96>0)","v":false}]
[76,{"$f":"IF(C85,VLOOKUP('HRSA 100-1-B CH GME PROG STATUS'!A99,Program_Name,2,FALSE),\"N/A\")","v":"N/A"},{"$f":"OR('HRSA 100-1-C NO. OF TRAINEES SI'!E92>0,'HRSA 100-1-D NO OF TRAINEES ROT'!F97>0)","v":false}]
[77,{"$f":"IF(C86,VLOOKUP('HRSA 100-1-B CH GME PROG STATUS'!A100,Program_Name,2,FALSE),\"N/A\")","v":"N/A"},{"$f":"OR('HRSA 100-1-C NO. OF TRAINEES SI'!E93>0,'HRSA 100-1-D NO OF TRAINEES ROT'!F98>0)","v":false}]
[78,{"$f":"IF(C87,VLOOKUP('HRSA 100-1-B CH GME PROG STATUS'!A101,Program_Name,2,FALSE),\"N/A\")","v":"N/A"},{"$f":"OR('HRSA 100-1-C NO. OF TRAINEES SI'!E94>0,'HRSA 100-1-D NO OF TRAINEES ROT'!F99>0)","v":false}]
[79,{"$f":"IF(C88,VLOOKUP('HRSA 100-1-B CH GME PROG STATUS'!A102,Program_Name,2,FALSE),\"N/A\")","v":"N/A"},{"$f":"OR('HRSA 100-1-C NO. OF TRAINEES SI'!E95>0,'HRSA 100-1-D NO OF TRAINEES ROT'!F100>0)","v":false}]
[80,{"$f":"IF(C89,VLOOKUP('HRSA 100-1-B CH GME PROG STATUS'!A103,Program_Name,2,FALSE),\"N/A\")","v":"N/A"},{"$f":"OR('HRSA 100-1-C NO. OF TRAINEES SI'!E96>0,'HRSA 100-1-D NO OF TRAINEES ROT'!F101>0)","v":false}]
[81,{"$f":"IF(C90,VLOOKUP('HRSA 100-1-B CH GME PROG STATUS'!A104,Program_Name,2,FALSE),\"N/A\")","v":"N/A"},{"$f":"OR('HRSA 100-1-C NO. OF TRAINEES SI'!E97>0,'HRSA 100-1-D NO OF TRAINEES ROT'!F102>0)","v":false}]
[82,{"$f":"IF(C91,VLOOKUP('HRSA 100-1-B CH GME PROG STATUS'!A105,Program_Name,2,FALSE),\"N/A\")","v":"N/A"},{"$f":"OR('HRSA 100-1-C NO. OF TRAINEES SI'!E98>0,'HRSA 100-1-D NO OF TRAINEES ROT'!F103>0)","v":false}]
[83,{"$f":"IF(C92,VLOOKUP('HRSA 100-1-B CH GME PROG STATUS'!A106,Program_Name,2,FALSE),\"N/A\")","v":"N/A"},{"$f":"OR('HRSA 100-1-C NO. OF TRAINEES SI'!E99>0,'HRSA 100-1-D NO OF TRAINEES ROT'!F104>0)","v":false}]
[84,{"$f":"IF(C93,VLOOKUP('HRSA 100-1-B CH GME PROG STATUS'!A107,Program_Name,2,FALSE),\"N/A\")","v":"N/A"},{"$f":"OR('HRSA 100-1-C NO. OF TRAINEES SI'!E100>0,'HRSA 100-1-D NO OF TRAINEES ROT'!F105>0)","v":false}]
[85,{"$f":"IF(C94,VLOOKUP('HRSA 100-1-B CH GME PROG STATUS'!A108,Program_Name,2,FALSE),\"N/A\")","v":"N/A"},{"$f":"OR('HRSA 100-1-C NO. OF TRAINEES SI'!E101>0,'HRSA 100-1-D NO OF TRAINEES ROT'!F106>0)","v":false}]
[86,{"$f":"IF(C95,VLOOKUP('HRSA 100-1-B CH GME PROG STATUS'!A109,Program_Name,2,FALSE),\"N/A\")","v":"N/A"},{"$f":"OR('HRSA 100-1-C NO. OF TRAINEES SI'!E102>0,'HRSA 100-1-D NO OF TRAINEES ROT'!F107>0)","v":false}]
[87,{"$f":"IF(C96,VLOOKUP('HRSA 100-1-B CH GME PROG STATUS'!A110,Program_Name,2,FALSE),\"N/A\")","v":"N/A"},{"$f":"OR('HRSA 100-1-C NO. OF TRAINEES SI'!E103>0,'HRSA 100-1-D NO OF TRAINEES ROT'!F108>0)","v":false}]
[88,{"$f":"IF(C97,VLOOKUP('HRSA 100-1-B CH GME PROG STATUS'!A111,Program_Name,2,FALSE),\"N/A\")","v":"N/A"},{"$f":"OR('HRSA 100-1-C NO. OF TRAINEES SI'!E104>0,'HRSA 100-1-D NO OF TRAINEES ROT'!F109>0)","v":false}]
[89,{"$f":"IF(C98,VLOOKUP('HRSA 100-1-B CH GME PROG STATUS'!A112,Program_Name,2,FALSE),\"N/A\")","v":"N/A"},{"$f":"OR('HRSA 100-1-C NO. OF TRAINEES SI'!E105>0,'HRSA 100-1-D NO OF TRAINEES ROT'!F110>0)","v":false}]
[90,{"$f":"IF(C99,VLOOKUP('HRSA 100-1-B CH GME PROG STATUS'!A113,Program_Name,2,FALSE),\"N/A\")","v":"N/A"},{"$f":"OR('HRSA 100-1-C NO. OF TRAINEES SI'!E106>0,'HRSA 100-1-D NO OF TRAINEES ROT'!F111>0)","v":false}]
[91,{"$f":"IF(C100,VLOOKUP('HRSA 100-1-B CH GME PROG STATUS'!A114,Program_Name,2,FALSE),\"N/A\")","v":"N/A"},{"$f":"OR('HRSA 100-1-C NO. OF TRAINEES SI'!E107>0,'HRSA 100-1-D NO OF TRAINEES ROT'!F112>0)","v":false}]
[92,{"$f":"IF(C101,VLOOKUP('HRSA 100-1-B CH GME PROG STATUS'!A115,Program_Name,2,FALSE),\"N/A\")","v":"N/A"},{"$f":"OR('HRSA 100-1-C NO. OF TRAINEES SI'!E108>0,'HRSA 100-1-D NO OF TRAINEES ROT'!F113>0)","v":false}]
[93,{"$f":"IF(C102,VLOOKUP('HRSA 100-1-B CH GME PROG STATUS'!A116,Program_Name,2,FALSE),\"N/A\")","v":"N/A"},{"$f":"OR('HRSA 100-1-C NO. OF TRAINEES SI'!E109>0,'HRSA 100-1-D NO OF TRAINEES ROT'!F114>0)","v":false}]
[94,{"$f":"IF(C103,VLOOKUP('HRSA 100-1-B CH GME PROG STATUS'!A117,Program_Name,2,FALSE),\"N/A\")","v":"N/A"},{"$f":"OR('HRSA 100-1-C NO. OF TRAINEES SI'!E110>0,'HRSA 100-1-D NO OF TRAINEES ROT'!F115>0)","v":false}]
[95,{"$f":"IF(C104,VLOOKUP('HRSA 100-1-B CH GME PROG STATUS'!A118,Program_Name,2,FALSE),\"N/A\")","v":"N/A"},{"$f":"OR('HRSA 100-1-C NO. OF TRAINEES SI'!E111>0,'HRSA 100-1-D NO OF TRAINEES ROT'!F116>0)","v":false}]
[]
[null,null," "]

{"sheet":".","index":6,"n_rows":2,"n_cols":1,"rows_kept":2}
["Initial completion of annual report "]
["Data missing from initial application"]

{"sheet":"..","index":7,"n_rows":145,"n_cols":3,"rows_kept":145}
[null,"Program Number","Program Label"]
[null,1,"Other (specify):"]
[null,{"$f":"B2+1","v":2},"Other:  ABA Alternative Pathway (Anesthesia)"]
[null,{"$f":"B3+1","v":3},"Other:  Addiction Psychiatry"]
[null,4,"Other:  Adolescent Bariatric Surgery"]
[null,5,"Other:  Adolescent Medicine"]
[null,6,"Other:  Adult Cardiothoracic Anesthesiology"]
[null,7,"Other:  Adult Congenital Heart Disease"]
[null,8,"Other:  Adult Transplant Hepatology"]
[null,9,"Other:  Advanced General Dentistry"]
[null,10,"Other:  Advanced Pediatric Hematology/ Oncology Neurooncology"]
[null,11,"Other:  Advanced Pediatric Hematology/ Oncology Stem Cell Transplantation"]
[null,12,"Other:  Anesthesia/Pain Medicine"]
[null,13,"Other:  Anesthesiology/ Critical Care Medicine"]
[null,14,"Other:  Body MRI"]
[null,15,"Other:  Bone & Marrow Transplantation"]
[null,16,"Other:  Cardio DS"]
[null,17,"Other:  Cardiology"]
[null,18,"Other:  Child Psychology"]
[null,19,"Other:  Clinical Cardiac Electrophysiology"]
[null,20,"Other:  Clinical Cardiac Electrophysiology (Adult)"]
[null,21,"Other:  Clinical Immunodeficiency  "]
[null,22,"Other:  Clinical Neurophysiology"]
[null,23,"Other:  Clinical Pharmacology and Toxicology"]
[null,24,"Other:  Congenital Cardiac Surgery"]
[null,25,"Other:  Craniofacial Surgery"]
[null,26,"Other:  Critical Care Anesthesiology"]
[null,27,"Other:  Critical Care Medicine"]
[null,28,"Other:  Dentistry"]
[null,29,"Other:  Dermapathology"]
[null,30,"Other:  Emergency Medicine/ Family Medicine"]
[null,31,"Other:  Endocrinology, Diabetes and Metabolism"]
[null,32,"Other:  Endodontics"]
[null,33,"Other:  Endovascular Surgical Neuroradiology"]
[null,34,"Other:  Epilepsy"]
[null,35,"Other:  Family Medicine/ Psychiatry"]
[null,36,"Other:  Family Medicine/ Sports Medicine"]
[null,37,"Other:  Female Pelvic Medicine and Reconstructive Surgery"]
[null,38,"Other:  Fetal Cardiology"]
[null,39,"Other:  Fetal Surgery"]
[null,40,"Other:  Foot and Ankle Orthopedics"]
[null,41,"Other:  Gastroenterology"]
[null,42,"Other:  General and Community Medicine"]
[null,43,"Other:  General Internship (DO)"]
[null,44,"Other:  General Pediatrics"]
[null,45,"Other:  GI Motility"]
[null,46,"Other:  Gynecological Oncology"]
[null,47,"Other:  Headache"]
[null,48,"Other:  Hematology "]
[null,49,"Other:  Hematology/ Oncology"]
[null,50,"Other:  Hematopathology"]
[null,51,"Other:  Hospice and Palliative Medicine"]
[null,52,"Other:  Hospitalist"]
[null,53,"Other:  Infectious Disease"]
[null,54,"Other:  Internal Medicine"]
[null,55,"Other:  Internal Medicine/ Emergency Medicine"]
[null,56,"Other:  Internal Medicine/ Hematology/ Oncology Fellowship"]
[null,57,"Other:  Internal Medicine/ Infectious Disease"]
[null,58,"Other:  International Pediatric Neurosurgery"]
[null,59,"Other:  Interventional Cardiology"]
[null,60,"Other:  Interventional Radiology"]
[null,61,"Other:  Lung Transplant"]
[null,62,"Other:  Maternal Fetal Medicine"]
[null,63,"Other:  Medical Biochemical Genetics"]
[null,64,"Other:  Medical Genetics, Molecular Genetic Pathology"]
[null,65,"Other:  Medical Microbiology"]
[null,66,"Other:  Molecular Genetic Medicine"]
[null,{"$f":"B67+1","v":67},"Other:  Movement Disorders"]
[null,68,"Other:  Musculoskeletal Oncology"]
[null,69,"Other:  Musculoskeletal Radiolology"]
[null,70,"Other:  Neonatology"]
[null,71,"Other:  Nephrology"]
[null,72,"Other:  Neuromuscular Medicine"]
[null,73,"Other:  Neuropathology"]
[null,74,"Other:  Neuroradiology"]
[null,75,"Other:  Nuclear Radiology"]
[null,76,"Other:  Oral and Maxillofacial Surgery"]
[null,77,"Other:  Oral Surgery"]
[null,78,"Other:  Orthopaedic Sports Medicine"]
[null,79,"Other:  Orthopedic Hand Surgery"]
[null,80,"Other:  Orthopedic Surgery of the Spine"]
[null,81,"Other:  Osteopathy"]
[null,82,"Other:  Pain Medicine"]
[null,83,"Other:  Palliative Care"]
[null,84,"Other:  Pathology, Anatomic and Clinical, Dermatopathology"]
[null,85,"Other:  Pathology, Anatomic and Clinical, General"]
[null,86,"Other:  Pathology, Anatomic and Clinical, Hematology"]
[null,87,"Other:  Pathology, Blood Banking/ Transfusion Medicine"]
[null,88,"Other:  Pathology/ Medical Microbiology"]
[null,89,"Other:  Pediatric Allergy and Immunology"]
[null,90,"Other:  Pediatric and Adolescent Gynecology"]
[null,91,"Other:  Pediatric Cardiac Imaging"]
[null,92,"Other:  Pediatric Clinical Cardiac Electrophysiology"]
[null,93,"Other:  Pediatric Clinical Pharmacology"]
[null,94,"Other:  Pediatric Colorectal Surgery"]
[null,95,"Other:  Pediatric Dentistry"]
[null,96,"Other:  Pediatric Diagnotic Radiology"]
[null,97,"Other:  Pediatric Environmental Health"]
[null,98,"Other:  Pediatric Epilepsy"]
[null,99,"Other:  Pediatric Heart Failure Transplant"]
[null,100,"Other:  Pediatric Hospital Medicine"]
[null,101,"Other:  Pediatric International Surgery"]
[null,102,"Other:  Pediatric Inteventional Cardiac Catherization"]
[null,103,"Other:  Pediatric Neurocritical Care"]
[null,104,"Other:  Pediatric Neuromuscular"]
[null,105,"Other:  Pediatric Neuroradiology"]
[null,106,"Other:  Pediatric Nutrition"]
[null,107,"Other:  Pediatric Optometry"]
[null,108,"Other:  Pediatric Orthodontics"]
[null,109,"Other:  Pediatric Physical Medicine and Rehabilitation"]
[null,110,"Other:  Pediatric Plastic Surgery"]
[null,111,"Other:  Pediatric Preventive Cardiology"]
[null,112,"Other:  Pediatric Surgical Critical Care"]
[null,113,"Other:  Pediatric Transplantation Surgery"]
[null,114,"Other:  Pediatric Trauma Surgery"]
[null,115,"Other:  Pedodontics"]
[null,116,"Other:  Plastic Hand Surgery"]
[null,117,"Other:  Plastic Surgery - Integrated"]
[null,118,"Other:  Podiatric Medicine and Surgery"]
[null,119,"Other:  Preliminary Medicine"]
[null,120,"Other:  Preliminary Surgery"]
[null,121,"Other:  Preventative Medicine-Medical Toxicology"]
[null,122,"Other:  Procedural Dermatology, General"]
[null,123,"Other:  Psychosomatic Medicine"]
[null,124,"Other:  Pulmonary Disease"]
[null,125,"Other:  Pulmonary Medicine/ Critical Care Medicine"]
[null,126,"Other:  Pulmonology"]
[null,127,"Other:  Quality Scholars in Transforming Health Care"]
[null,128,"Other:  Radiation Oncology"]
[null,129,"Other:  Reproductive Endocrinology"]
[null,130,"Other:  Rheumatology"]
[null,{"$f":"B131+1","v":131},"Other:  Sleep Medicine"]
[null,132,"Other:  Spinal Cord"]
[null,133,"Other:  Spinal Cord Injury Medicine"]
[null,134,"Other:  Sports Medicine"]
[null,135,"Other:  Surgical Critical Care"]
[null,136,"Other:  Surgical Scholar"]
[null,137,"Other:  Traditional Rotating Internships (Osteopathic)"]
[null,138,"Other:  Transitional Year"]
[null,139,"Other:  Transplant Medicine"]
[null,140,"Other:  Transplant Surgery"]
[null,141,"Other:  Vascular and Interventional Radiology"]
[null,142,"Other:  Vascular Anomalies Surgery"]
[null,143,"Other:  Vascular Neurology"]
[null,144,"Other:  Vascular Surgery"]